fUST/lending_fUST_20240603
["ID","MTS","AMOUNT","RATE_DAILY","PERIOD"]
[328435641,1717384244377,-500.0,0.00024998,2]
[328435642,1717384244387,-500.0,0.00024998,2]
[328435643,1717384244396,-500.0,0.00024998,2]
[328435644,1717384244404,-193.19,0.00024999,3]
[328435645,1717384244413,-273.94679662,0.00024999,3]
[328435646,1717384244424,-10387.58320338,0.00024999,3]
[328435647,1717384244434,-2371.0,0.00025,2]
[328435648,1717384244443,-343.91087733,0.00025215,2]
[328435649,1717384244453,-151.0,0.00025429,7]
[328435650,1717384244462,-150.75686151,0.0002574,2]
[328435651,1717384244471,-7332.91185935,0.00025887,2]
[328435652,1717384244483,-690.14607,0.00025887,2]
[328435653,1717384244494,-1514.71423991,0.00025887,2]
[328435654,1717384244503,-461.8019537,0.000259,2]
[328435655,1717384244513,-114.62388286,0.000259,2]
[328435656,1717384244746,-342.54628321,0.000259,2]
[328435657,1717384244758,-762.0201281,0.000259,2]
[328435658,1717384244769,-151.0,0.000259,2]
[328435659,1717384244779,-152.383344,0.000259,2]
[328435660,1717384244789,-151.0,0.00025971,7]
[328435661,1717384244798,-151.0,0.00025971,7]
[328435662,1717384244809,-4622.09297749,0.00025979,3]
[328435663,1717384244820,-549.08406969,0.00025979,3]
[328435697,1717384246802,-636.5613204,0.0001949,2]
[328435699,1717384246812,-854.60441599,0.00025979,3]
[328435783,1717384402357,1154.46562014,9.999e-05,2]
[328435784,1717384407096,164.46665149,9.999e-05,2]
[328435785,1717384407427,208.16929147,9.999e-05,2]
[328435786,1717384409755,156.80835983,9.999e-05,2]
[328435787,1717384414291,515.01910878,9.999e-05,2]
[328435788,1717384415645,837.30060204,9.999e-05,2]
[328435789,1717384417346,525.42861356,9.999e-05,2]
[328435790,1717384418341,759.1745135,9.999e-05,2]
[328435791,1717384422033,551.8571261,9.999e-05,2]
[328435792,1717384422379,1045.56263381,9.999e-05,2]
[328435793,1717384425279,1341.75482634,9.999e-05,2]
[328435794,1717384428400,721.58593738,9.999e-05,2]
[328435795,1717384430400,523.83692482,9.999e-05,2]
[328435796,1717384434374,1099.5217014,0.00015,2]
[328435797,1717384443301,156.76475434,9.999e-05,2]
[328435798,1717384446927,2119.09372413,9.999e-05,2]
[328435799,1717384462417,302.96904767,9.999e-05,2]
[328435800,1717384464941,489.1611526,9.999e-05,2]
[328435801,1717384465022,521.43136031,9.999e-05,2]
[328435802,1717384466900,194.9003054,9.999e-05,2]
[328435803,1717384499702,155.0,9.999e-05,2]
[328435804,1717384506277,187.18149386,9.999e-05,2]
[328435805,1717384619637,216.10848101,9.999e-05,2]
[328435806,1717384765048,825.33,0.00010959,2]
[328435807,1717384919360,412.66,0.00010959,2]
[328435808,1717384930076,343.88,0.00010959,2]
[328435809,1717384934312,1872.63065558,0.00010958,2]
[328435810,1717384961852,859.74,0.00010959,2]
[328435811,1717385030470,208.16929147,9.999e-05,2]
[328435813,1717385106426,859.71,0.00010959,2]
[328435815,1717385316708,1582.6853397,0.00019178,7]
[328435816,1717385372300,791.34266985,0.00019178,7]
[328436123,1717385435712,395.67133493,0.00019178,7]
[328436608,1717385440359,-2684.83597904,0.00015215,2]
[328436610,1717385440370,-3174.31661083,0.00015215,2]
[328436614,1717385440398,-7356.98377849,0.00015215,2]
[328436616,1717385440408,-2142.95691577,0.00015216,2]
[328437016,1717385445528,-9510.00000299,0.00015214,2]
[328437061,1717385446774,-50009.31929615,0.00015214,2]
[328437063,1717385446784,-1901.95956528,0.00015214,2]
[328437065,1717385446793,-22757.04308423,0.00015216,2]
[328437067,1717385446803,-1981.65143947,0.00015475,2]
[328437069,1717385446812,-19289.36611798,0.00015476,2]
[328437071,1717385446822,-3000.0,0.00015483,2]
[328437073,1717385446831,-290.040052,0.00015858,2]
[328437075,1717385446840,-1670.73408187,0.00016591,2]
[328437077,1717385446850,-696.69777526,0.00016689,2]
[328437079,1717385446859,-537.21604938,0.000167,2]
[328437081,1717385446868,-179.25722717,0.000168,2]
[328437083,1717385446877,-5998.4973779,0.00016911,2]
[328437085,1717385446886,-10476.6863812,0.00017898,2]
[328437087,1717385446896,-537.21604931,0.00018583,2]
[328437089,1717385446905,-1670.73408186,0.00018632,2]
[328437091,1717385446914,-267.23538084,0.000189,2]
[328437093,1717385446923,-216.95328311,0.0001917,2]
[328437095,1717385446932,-500.0,0.00019178,2]
[328437097,1717385446941,-500.0,0.00019178,2]
[328437099,1717385446950,-500.0,0.00019178,2]
[328437101,1717385446960,-647.05692188,0.00019178,2]
[328437103,1717385446969,-500.0,0.00019178,2]
[328437104,1717385446979,-500.0,0.00019178,2]
[328437105,1717385446987,-500.0,0.00019178,2]
[328437106,1717385446996,-500.0,0.00019178,2]
[328437107,1717385447005,-500.0,0.00019178,2]
[328437108,1717385447014,-500.0,0.00019178,2]
[328437109,1717385447023,-500.0,0.00019178,2]
[328437110,1717385447032,-500.0,0.00019178,2]
[328437111,1717385447041,-500.0,0.00019178,2]
[328437112,1717385447050,-500.0,0.00019178,2]
[328437113,1717385447059,-500.0,0.00019178,2]
[328437114,1717385447068,-500.0,0.00019178,2]
[328437115,1717385447076,-500.0,0.00019178,2]
[328437116,1717385447085,-500.0,0.00019178,2]
[328437117,1717385447094,-500.0,0.00019178,2]
[328437118,1717385447103,-500.0,0.00019178,2]
[328437119,1717385447113,-500.0,0.00019178,2]
[328437120,1717385447122,-500.0,0.00019178,2]
[328437121,1717385447132,-635.0,0.00019178,2]
[328437122,1717385447140,-500.0,0.00019178,2]
[328437123,1717385447149,-500.0,0.00019178,2]
[328437124,1717385447158,-500.0,0.00019178,2]
[328437125,1717385447167,-500.0,0.00019178,2]
[328437126,1717385447176,-500.0,0.00019178,2]
[328437127,1717385447186,-260.6906085,0.00019178,2]
[328437128,1717385447195,-500.0,0.00019178,2]
[328437129,1717385447204,-500.0,0.00019178,2]
[328437130,1717385447215,-500.0,0.00019178,2]
[328437131,1717385447224,-500.0,0.00019178,2]
[328437132,1717385447233,-500.0,0.00019178,2]
[328437133,1717385447243,-500.0,0.00019178,2]
[328437134,1717385447255,-500.0,0.00019178,2]
[328437135,1717385447264,-500.0,0.00019178,2]
[328437136,1717385447273,-500.0,0.00019178,2]
[328437137,1717385447282,-500.0,0.00019178,2]
[328437138,1717385447292,-500.0,0.00019178,2]
[328437139,1717385447302,-500.0,0.00019178,2]
[328437140,1717385447312,-500.0,0.00019178,2]
[328437141,1717385447322,-500.0,0.00019178,2]
[328437142,1717385447332,-500.0,0.00019178,2]
[328437143,1717385447341,-500.0,0.00019178,2]
[328437144,1717385447351,-500.0,0.00019178,2]
[328437145,1717385447360,-500.0,0.00019178,2]
[328437146,1717385447369,-500.0,0.00019178,2]
[328437147,1717385447378,-500.0,0.00019178,2]
[328437148,1717385447387,-500.0,0.00019178,2]
[328437149,1717385447396,-500.0,0.00019178,2]
[328437151,1717385447406,-500.0,0.00019178,2]
[328437153,1717385447415,-500.0,0.00019178,2]
[328437154,1717385447424,-500.0,0.00019178,2]
[328437156,1717385447433,-153.07909747,0.00019178,2]
[328437159,1717385447444,-500.0,0.00019178,2]
[328437161,1717385447453,-500.0,0.00019178,2]
[328437163,1717385447462,-500.0,0.00019178,2]
[328437165,1717385447471,-500.0,0.00019178,2]
[328437167,1717385447481,-500.0,0.00019178,2]
[328437169,1717385447490,-500.0,0.00019178,2]
[328437171,1717385447499,-500.0,0.00019178,2]
[328437172,1717385447508,-500.0,0.00019178,2]
[328437174,1717385447517,-500.0,0.00019178,2]
[328437176,1717385447526,-500.0,0.00019178,2]
[328437179,1717385447536,-500.0,0.00019178,2]
[328437180,1717385447545,-165.30790974,0.00019178,2]
[328437182,1717385447555,-500.0,0.00019178,2]
[328437185,1717385447564,-500.0,0.00019178,2]
[328437186,1717385447574,-488.96249109,0.00019178,2]
[328437188,1717385447583,-583.8283982,0.00019178,2]
[328437191,1717385447592,-431.88532699,0.00019178,2]
[328437193,1717385447601,-430.98197542,0.00019178,2]
[328437195,1717385447610,-500.0,0.00019178,2]
[328437197,1717385447619,-500.0,0.00019178,2]
[328437198,1717385447627,-500.0,0.00019178,2]
[328437200,1717385447636,-500.0,0.00019178,2]
[328437203,1717385447646,-309.78026214,0.00019178,2]
[328437205,1717385447660,-190.21973786,0.00019178,2]
[328437207,1717385447669,-160.80814649,0.00019178,2]
[328437209,1717385447678,-500.0,0.00019178,2]
[328437211,1717385447686,-500.0,0.00019178,2]
[328437213,1717385447695,-500.0,0.00019178,2]
[328437215,1717385447704,-289.09078414,0.00019178,2]
[328437217,1717385447714,-682.171912,0.00019178,2]
[328437219,1717385447723,-682.171912,0.00019178,2]
[328437221,1717385447732,-151.0,0.00019178,2]
[328437223,1717385447741,-151.0,0.00019178,2]
[328437225,1717385447750,-151.0,0.00019178,2]
[328437227,1717385447758,-151.0,0.00019178,2]
[328437229,1717385447767,-151.0,0.00019178,2]
[328437231,1717385447776,-225.633657,0.00019178,2]
[328437233,1717385447785,-166.66216434,0.00019178,2]
[328437235,1717385447794,-151.0,0.00019178,2]
[328437237,1717385447803,-151.0,0.00019178,2]
[328437239,1717385447813,-1483.19,0.00019178,2]
[328437241,1717385447821,-1483.19,0.00019178,2]
[328437243,1717385447831,-1483.19,0.00019178,2]
[328437245,1717385447839,-151.0,0.00019178,2]
[328437247,1717385447849,-151.0,0.00019178,2]
[328437249,1717385447858,-356.201402,0.00019178,2]
[328437251,1717385447867,-356.201402,0.00019178,2]
[328437253,1717385447876,-425.76586299,0.00019178,2]
[328437255,1717385447885,-500.0,0.00019178,2]
[328437257,1717385447894,-500.0,0.00019178,2]
[328437259,1717385447903,-500.0,0.00019178,2]
[328437261,1717385447913,-500.81156741,0.00019178,2]
[328437263,1717385447923,-500.30017055,0.00019178,2]
[328437265,1717385447933,-462.69675141,0.00019178,2]
[328437267,1717385447942,-154.92657908,0.00019178,2]
[328437269,1717385447951,-164.536748,0.00019178,2]
[328437271,1717385447961,-187.79294815,0.00019482,2]
[328437273,1717385447970,-304.37635375,0.00019483,2]
[328437275,1717385447980,-195.42865208,0.00019483,2]
[328437277,1717385447989,-500.0,0.00019484,2]
[328437279,1717385447999,-500.0,0.00019484,2]
[328437281,1717385448008,-500.91788205,0.00019484,2]
[328437283,1717385448017,-500.0,0.00019484,2]
[328437285,1717385448026,-500.0,0.00019486,2]
[328437287,1717385448035,-500.0,0.00019486,2]
[328437289,1717385448045,-500.0,0.00019486,2]
[328437291,1717385448054,-293.4884603,0.0001949,2]
[328437293,1717385448063,-537.21604931,0.00020466,2]
[328437295,1717385448072,-7743.30290824,0.00020673,7]
[328437297,1717385448081,-1670.73408186,0.00020673,2]
[328437300,1717385448092,-1483.19,0.00020999,2]
[328437302,1717385448101,-502.75791951,0.00020999,2]
[328437304,1717385448110,-22895.98817428,0.00021,2]
[328437306,1717385448120,-151.0,0.00021,2]
[328437308,1717385448128,-151.0,0.00021,2]
[328437310,1717385448138,-151.0,0.00021,2]
[328437312,1717385448148,-682.171912,0.00021,2]
[328437314,1717385448157,-682.171912,0.00021,2]
[328437316,1717385448166,-151.0,0.00021,2]
[328437318,1717385448175,-151.0,0.00021,2]
[328437320,1717385448184,-156.041208,0.00021,2]
[328437322,1717385448193,-151.0,0.00021,2]
[328437324,1717385448202,-151.0,0.00021,2]
[328437325,1717385448211,-151.0,0.00021,2]
[328437327,1717385448221,-151.0,0.00021,2]
[328437330,1717385448232,-289.96159,0.00021,2]
[328437331,1717385448241,-151.0,0.00021,2]
[328437333,1717385448254,-288.910862,0.00021,2]
[328437335,1717385448264,-356.201402,0.00021,2]
[328437337,1717385448273,-356.201402,0.00021,2]
[328437339,1717385448282,-166.666666,0.00021918,2]
[328437341,1717385448291,-151.0,0.00021918,2]
[328437343,1717385448300,-537.21604931,0.00022349,2]
[328437345,1717385448309,-166.666666,0.00022431,2]
[328437347,1717385448319,-1670.73408186,0.00022714,2]
[328437349,1717385448328,-166.666666,0.00022944,2]
[328437351,1717385448338,-166.666666,0.00023456,2]
[328437353,1717385448347,-290.040052,0.00023787,2]
[328437355,1717385448356,-267.23538084,0.000239,2]
[328437357,1717385448365,-166.666666,0.00023969,2]
[328437359,1717385448375,-537.21604931,0.00024232,2]
[328437361,1717385448384,-762.1714115,0.000244,2]
[328437363,1717385448393,-166.666666,0.00024482,2]
[328437365,1717385448402,-507.97232555,0.00024717,2]
[328437367,1717385448411,-500.0,0.00024717,2]
[328437368,1717385448421,-418.78558995,0.00024717,2]
[328437369,1717385448430,-273.34434007,0.00024726,2]
[328437370,1717385448439,-309.6368127,0.00024727,2]
[328437371,1717385448449,-1286.98506408,0.00024727,2]
[328437372,1717385448458,-2084.09609406,0.00024727,2]
[328437373,1717385448467,-283.98291308,0.00024727,2]
[328437374,1717385448478,-155.89193003,0.00024727,2]
[328437375,1717385448488,-183.35301255,0.00024727,2]
[328437376,1717385448498,-278.4005551,0.00024727,2]
[328437377,1717385448507,-478.61896501,0.00024727,2]
[328437378,1717385448517,-155.54107077,0.00024727,2]
[328437379,1717385448527,-920.1476061,0.00024727,2]
[328437381,1717385448536,-165.82282537,0.00024727,2]
[328437383,1717385448545,-157.4860266,0.00024727,2]
[328437385,1717385448555,-572.02635128,0.00024727,2]
[328437387,1717385448565,-430.51360028,0.00024727,2]
[328437389,1717385448574,-764.62432189,0.00024727,2]
[328437391,1717385448584,-571.88753583,0.00024727,2]
[328437393,1717385448593,-1049.01078888,0.00024727,2]
[328437395,1717385448602,-458.56969166,0.00024727,2]
[328437396,1717385448612,-527.87701073,0.00024727,2]
[328437397,1717385448621,-725.23487583,0.00024727,2]
[328437398,1717385448630,-181.67724861,0.00024727,2]
[328437399,1717385448639,-157.35029184,0.00024727,2]
[328437400,1717385448649,-177.462426,0.00024727,2]
[328437401,1717385448658,-153.807094,0.00024727,2]
[328437402,1717385448667,-151.0,0.00024727,2]
[328437403,1717385448676,-151.0,0.00024727,2]
[328437404,1717385448686,-695.3384124,0.00024728,2]
[328437405,1717385448695,-1326.39842722,0.00024728,2]
[328437406,1717385448704,-151.0,0.00024728,2]
[328437407,1717385448713,-151.0,0.00024728,2]
[328437408,1717385448723,-356.201402,0.00024728,2]
[328437409,1717385448733,-356.201402,0.00024728,2]
[328437410,1717385448743,-1483.19,0.00024732,2]
[328437411,1717385448755,-151.0,0.00024733,2]
[328437412,1717385448764,-151.0,0.00024733,2]
[328437413,1717385448773,-241.681876,0.00024733,2]
[328437414,1717385448782,-151.0,0.00024733,2]
[328437415,1717385448792,-151.0,0.00024733,2]
[328437416,1717385448801,-151.0,0.00024733,2]
[328437417,1717385448810,-151.0,0.00024733,2]
[328437418,1717385448819,-151.0,0.00024733,2]
[328437419,1717385448828,-1670.73408186,0.00024755,2]
[328437420,1717385448837,-229.88042,0.00024855,2]
[328437421,1717385448846,-151.0,0.00024855,2]
[328437422,1717385448855,-682.171912,0.00024855,2]
[328437423,1717385448865,-682.171912,0.00024855,2]
[328437424,1717385448874,-163.0,0.00024932,2]
[328437426,1717385448883,-163.0,0.00025,2]
[328437428,1717385448892,-1185.0,0.00025,2]
[328437430,1717385448901,-153.0,0.00025233,2]
[328437431,1717385448910,-153.0,0.00025233,2]
[328437433,1717385448919,-153.0,0.00025233,2]
[328437435,1717385448928,-153.0,0.00025233,2]
[328437437,1717385448937,-205.0258957,0.0002537,2]
[328437439,1717385448946,-205.0258957,0.0002537,2]
[328437441,1717385448957,-205.0258957,0.0002537,2]
[328437443,1717385448966,-205.0258957,0.0002537,2]
[328437445,1717385448975,-1483.19,0.00025615,2]
[328437447,1717385448984,-150.38246786,0.00025683,2]
[328437449,1717385448994,-3701.95474454,0.00025706,2]
[328437451,1717385449003,-156.16459103,0.00025719,2]
[328437453,1717385449012,-10000.0,0.00025732,2]
[328437455,1717385449021,-151.0,0.00025886,2]
[328437457,1717385449030,-209.590694,0.00025886,2]
[328437458,1717385449039,-151.0,0.00025887,2]
[328437459,1717385449048,-151.0,0.00025887,2]
[328437461,1717385449058,-151.0,0.00025887,2]
[328437462,1717385449067,-154.336235,0.00025887,2]
[328437464,1717385449076,-151.0,0.00025887,2]
[328437466,1717385449085,-356.201402,0.00025887,2]
[328437468,1717385449094,-356.201402,0.00025887,2]
[328437470,1717385449104,-151.0,0.00025887,2]
[328437472,1717385449113,-88888.0,0.00025887,3]
[328437474,1717385449123,-163.0,0.0002589,2]
[328437476,1717385449132,-504.71630993,0.00025899,2]
[328437494,1717385449299,-1483.19,0.00025899,2]
[328437496,1717385449309,-1483.19,0.00025899,2]
[328437498,1717385449319,-151.0,0.000259,2]
[328437500,1717385449332,-151.0,0.000259,2]
[328437502,1717385449341,-682.171912,0.000259,2]
[328437504,1717385449351,-682.171912,0.000259,2]
[328437506,1717385449361,-151.0,0.000259,2]
[328437508,1717385449370,-461.8019537,0.00025979,2]
[328437510,1717385449379,-457.17016607,0.00025979,2]
[328437512,1717385449388,-762.0201281,0.00025979,2]
[328437514,1717385449397,-3987.57363517,0.00025979,2]
[328437516,1717385449406,-690.9734979,0.00025984,2]
[328437518,1717385449415,-574.03671295,0.00025985,2]
[328437520,1717385449425,-1483.19,0.00025986,2]
[328437522,1717385449434,-151.0,0.00025987,2]
[328437524,1717385449443,-356.201402,0.00025987,2]
[328437526,1717385449453,-356.201402,0.00025987,2]
[328437528,1717385449462,-232.362129,0.00025987,2]
[328437530,1717385449471,-9212.69734856,0.00025987,2]
[328437532,1717385449482,-155.16278303,0.00025987,2]
[328437534,1717385449491,-2647.35651139,0.00025987,2]
[328437536,1717385449500,-155.45311751,0.00025987,2]
[328437538,1717385449510,-723.13331172,0.00025987,2]
[328437540,1717385449519,-574.62534621,0.00025987,2]
[328437542,1717385449529,-1846.41478718,0.00025987,2]
[328437544,1717385449539,-457.56482182,0.00025987,2]
[328437546,1717385449548,-660.20558504,0.00025987,2]
[328437548,1717385449557,-480.64149903,0.00025988,2]
[328437550,1717385449566,-5668.23786986,0.00025988,2]
[328437552,1717385449575,-151.0,0.00025988,2]
[328437553,1717385449584,-151.0,0.00025988,2]
[328437555,1717385449593,-682.171912,0.00025988,2]
[328437557,1717385449602,-682.171912,0.00025988,2]
[328437559,1717385449611,-151.0,0.00025988,2]
[328437561,1717385449621,-151.0,0.00025988,2]
[328437563,1717385449630,-151.0,0.00025988,2]
[328437565,1717385449639,-151.0,0.00025988,2]
[328437567,1717385449648,-155.17444001,0.00025998,2]
[328437569,1717385449657,-14881.22062048,0.00025998,2]
[328437571,1717385449667,-401.60983801,0.00025998,2]
[328437573,1717385449676,-151.0,0.00025998,2]
[328437575,1717385449685,-356.201402,0.00025998,2]
[328437578,1717385449695,-356.201402,0.00025998,2]
[328437579,1717385449704,-151.0,0.00025999,2]
[328437581,1717385449713,-151.0,0.00025999,2]
[328437583,1717385449723,-682.171912,0.00025999,2]
[328437585,1717385449733,-682.171912,0.00025999,2]
[328437587,1717385449742,-151.0,0.00025999,2]
[328437589,1717385449751,-230.784863,0.00025999,2]
[328437591,1717385449760,-151.0,0.00025999,2]
[328437593,1717385449769,-151.0,0.00025999,2]
[328437595,1717385449778,-1483.19,0.00025999,2]
[328437597,1717385449787,-1483.19,0.00025999,2]
[328437599,1717385449796,-1483.19,0.00025999,2]
[328437601,1717385449805,-1483.19,0.00025999,2]
[328437603,1717385449814,-1483.19,0.00025999,2]
[328437605,1717385449824,-26521.90032975,0.00026,2]
[328437607,1717385449833,-4140.31625051,0.00026,10]
[328437609,1717385449842,-114662.52805787,0.00026,7]
[328437611,1717385449851,-225.66640657,0.00026,2]
[328437613,1717385449861,-12889.10317645,0.00026,2]
[328437615,1717385449870,-154.48255,0.00026,2]
[328437617,1717385449879,-151.0,0.00026,2]
[328437619,1717385449888,-151.0,0.00026,2]
[328437621,1717385449897,-682.171912,0.00026,2]
[328437623,1717385449906,-682.171912,0.00026,2]
[328437625,1717385449915,-682.171912,0.00026,2]
[328437627,1717385449924,-682.171912,0.00026,2]
[328437629,1717385449934,-151.0,0.00026,2]
[328437631,1717385449943,-151.0,0.00026,2]
[328437633,1717385449951,-150.357308,0.00026,2]
[328437635,1717385449961,-151.0,0.00026,2]
[328437637,1717385449970,-151.0,0.00026,2]
[328437638,1717385449980,-151.0,0.00026,2]
[328437640,1717385449990,-199.990327,0.00026,2]
[328437642,1717385449999,-504.0,0.00026,2]
[328437644,1717385450008,-1184.0,0.00026,2]
[328437646,1717385450017,-1008.927157,0.00026,2]
[328437648,1717385450027,-151.0,0.00026,2]
[328437650,1717385450036,-151.0,0.00026,2]
[328437652,1717385450045,-356.201402,0.00026,2]
[328437653,1717385450055,-356.201402,0.00026,2]
[328437654,1717385450064,-356.201402,0.00026,2]
[328437655,1717385450074,-356.201402,0.00026,2]
[328437656,1717385450083,-151.0,0.00026027,2]
[328437657,1717385450092,-151.981619,0.00026027,2]
[328437658,1717385450101,-153.0,0.00026082,2]
[328437659,1717385450110,-153.0,0.00026082,2]
[328437660,1717385450119,-153.0,0.00026082,2]
[328437662,1717385450128,-153.0,0.00026082,2]
[328437663,1717385450137,-351.0923607,0.00026082,2]
[328437665,1717385450146,-537.21604931,0.00026115,2]
[328437667,1717385450155,-179.5410381,0.00026137,2]
[328437669,1717385450164,-153.0,0.00026137,2]
[328437671,1717385450173,-153.0,0.00026137,2]
[328437673,1717385450182,-153.0,0.00026137,2]
[328437675,1717385450191,-153.0,0.00026137,2]
[328437677,1717385450200,-153.0,0.00026137,2]
[328437678,1717385450209,-153.0,0.00026137,2]
[328437679,1717385450219,-153.0,0.00026137,2]
[328437680,1717385450230,-153.0,0.00026137,2]
[328437681,1717385450239,-333.64775522,0.00026162,2]
[328437682,1717385450250,-435.0,0.0002617,3]
[328437683,1717385450259,-10341.20050874,0.00026188,2]
[328437684,1717385450268,-302.49845151,0.00026188,2]
[328437685,1717385450278,-264.88464688,0.00026188,2]
[328437686,1717385450287,-161.19269202,0.00026188,2]
[328437688,1717385450297,-266.93973608,0.00026188,2]
[328437690,1717385450306,-318.07534352,0.00026188,2]
[328437692,1717385450315,-2040.27407403,0.00026188,2]
[328437694,1717385450324,-208.88311517,0.00026188,2]
[328437696,1717385450334,-285.07763569,0.00026188,2]
[328437698,1717385450343,-151.0,0.00026188,2]
[328437700,1717385450352,-682.171912,0.00026188,2]
[328437702,1717385450361,-682.171912,0.00026188,2]
[328437704,1717385450370,-151.0,0.00026188,2]
[328437706,1717385450380,-151.0,0.00026188,2]
[328437708,1717385450389,-151.0,0.00026188,2]
[328437710,1717385450398,-356.201402,0.00026188,2]
[328437712,1717385450407,-356.201402,0.00026188,2]
[328437713,1717385450417,-1483.19,0.00026189,2]
[328437715,1717385450426,-1483.19,0.00026189,2]
[328437717,1717385450436,-1483.19,0.00026189,2]
[328437720,1717385450446,-1483.19,0.00026189,2]
[328437721,1717385450455,-1483.19,0.00026189,2]
[328437723,1717385450465,-1483.19,0.00026189,2]
[328437725,1717385450477,-1483.19,0.00026189,2]
[328437727,1717385450486,-1483.19,0.00026189,2]
[328437729,1717385450496,-1483.19,0.00026189,2]
[328437730,1717385450505,-1483.35208027,0.00026189,2]
[328437731,1717385450514,-15535.19022276,0.0002619,3]
[328437759,1717386632628,-506.03552784,0.00019178,2]
[328437760,1717386632638,-12321.08114468,0.0002,2]
[328437761,1717386632651,-236.5377077,0.00020452,2]
[328437762,1717386632660,-24900.0,0.00020892,2]
[328437763,1717386632670,-3999.27191535,0.00021,2]
[328437764,1717386632679,-186.517934,0.00021918,2]
[328437765,1717386632688,-500.0,0.00021999,2]
[328437767,1717386632699,-500.0,0.00021999,2]
[328437769,1717386632708,-500.0,0.00021999,2]
[328437771,1717386632717,-500.0,0.00021999,2]
[328437773,1717386632730,-177.97794551,0.00021999,2]
[328437775,1717386632740,-500.0,0.00021999,2]
[328437777,1717386632750,-500.0,0.00021999,2]
[328437778,1717386632759,-500.0,0.00021999,2]
[328437779,1717386632767,-500.0,0.00021999,2]
[328437780,1717386632778,-500.0,0.00021999,2]
[328437781,1717386632788,-500.0,0.00021999,2]
[328437782,1717386632797,-500.0,0.00021999,2]
[328437783,1717386632808,-500.0,0.00021999,2]
[328437784,1717386632818,-250.21217066,0.00021999,2]
[328437785,1717386632827,-184.70656089,0.00021999,2]
[328437786,1717386632836,-399.37942586,0.00021999,2]
[328437787,1717386632845,-448.24244395,0.00021999,2]
[328437788,1717386632855,-500.0,0.00021999,2]
[328437789,1717386632864,-41139.57461505,0.00022,2]
[328437826,1717386638597,-150.0,0.000199,2]
[328437827,1717386638608,-6661.32047843,0.00022,2]
[328437917,1717386641645,-1333.20001333,0.00022,2]
[328437941,1717386643782,-3995.79395459,0.00022,2]
[328437972,1717387263758,-150.0,0.000199,2]
[328437973,1717387263790,-24900.0,0.00020994,2]
[328437974,1717387263827,-259.042039,0.00021029,2]
[328437975,1717387497036,-165.0489532,0.00020813,2]
[328437976,1717387497073,-284.374669,0.00020899,2]
[328437977,1717387497110,-461.8019537,0.00021029,2]
[328437978,1717387514513,462.59629197,0.00021029,2]
[328437979,1717387530430,-4233.91851657,0.00021815,2]
[328437980,1717387530452,-239.82509066,0.00021818,2]
[328437981,1717387530479,-153.49029982,0.00021899,2]
[328437982,1717387530503,-166.18038151,0.000219,2]
[328437983,1717387530526,-166.666666,0.00021918,2]
[328437984,1717387530548,-749.76,0.0002199,3]
[328437985,1717387530570,-387.38,0.0002199,3]
[328437986,1717387530593,-193.69,0.0002199,3]
[328437987,1717387530616,-15709.08904544,0.00021998,2]
[328437988,1717387546675,239.337174,9.999e-05,2]
[328437989,1717387600890,273.37336231,9.9e-05,2]
[328437990,1717387609120,273.37336231,9.9e-05,2]
[328437991,1717387627197,659.34508716,9.999e-05,2]
[328437996,1717387806486,926.47080383,9.999e-05,2]
[328438044,1717387837732,-659.34508716,0.00020771,2]
[328438046,1717387837749,-3721.2146975,0.00020771,2]